lending/lending_fUSD_20240111
["ID","MTS","AMOUNT","RATE_DAILY","PERIOD"]
[311249845,1704996641858,-150.14241864,0.000309,2]
[311249847,1704996641868,-150.14241864,0.000309,2]
[311249849,1704996641878,-150.14241864,0.000309,2]
[311249851,1704996641887,-150.14241864,0.000309,2]
[311249853,1704996641896,-150.14241864,0.000309,2]
[311249855,1704996641905,-150.14241864,0.000309,2]
[311249857,1704996641914,-150.14241864,0.000309,2]
[311249859,1704996641923,-150.14241864,0.000309,2]
[311249861,1704996641932,-150.14241864,0.000309,2]
[311249863,1704996641946,-150.14241864,0.000309,2]
[311249865,1704996641955,-150.14241864,0.000309,2]
[311249867,1704996641965,-150.14241864,0.00030983,2]
[311249869,1704996641974,-500.0,0.00031,3]
[311249871,1704996641983,-153.84,0.0003105,2]
[311249873,1704996641993,-857.83,0.00031052,2]
[311249875,1704996642002,-2500.0,0.00031111,10]
[311249877,1704996642011,-450.0,0.0003126,3]
[311249879,1704996642020,-13928.55198614,0.00031278,2]
[311249881,1704996642029,-304.91799082,0.000314,30]
[311249883,1704996642038,-8472.12316007,0.0003143,4]
[311249885,1704996642051,-2673.43,0.00031455,2]
[311249887,1704996642066,-406.31,0.00031507,2]
[311249889,1704996642076,-155.0,0.00031507,2]
[311249891,1704996642085,-150.14241864,0.00031641,2]
[311249893,1704996642095,-450.0,0.0003188,3]
[311249895,1704996642103,-153.84,0.00031963,2]
[311249897,1704996642113,-403.37,0.00031973,2]
[311249899,1704996642122,-693.59855735,0.00031998,15]
[311249901,1704996642131,-288.34262207,0.00031998,4]
[311249903,1704996642140,-156.45779038,0.00031998,2]
[311249905,1704996642150,-160.72539687,0.00031998,4]
[311249907,1704996642159,-120995.4810971,0.00032,2]
[311249909,1704996642168,-297.1247831,0.00032,4]
[311249911,1704996642177,-200.0,0.00032,2]
[311249913,1704996642187,-308.0,0.00032,2]
[311249915,1704996642196,-155.0,0.00032,2]
[311249917,1704996642205,-3000.0,0.00032,2]
[311249919,1704996642214,-27422.55251044,0.00032,2]
[311249921,1704996642223,-3000.0,0.0003201,2]
[311249923,1704996642232,-3000.0,0.0003202,2]
[311249925,1704996642242,-3000.0,0.0003203,2]
[311249927,1704996642251,-3000.0,0.0003204,2]
[311249929,1704996642261,-3000.0,0.0003205,2]
[311249931,1704996642271,-3000.0,0.0003206,2]
[311249933,1704996642280,-3000.0,0.0003207,2]
[311249935,1704996642289,-3000.0,0.0003208,2]
[311249937,1704996642298,-3000.0,0.0003209,2]
[311249939,1704996642307,-1022.54402972,0.000321,2]
[311249942,1704996642316,-3000.0,0.000321,2]
[311249945,1704996642325,-3000.0,0.0003211,2]
[311249948,1704996642334,-3000.0,0.0003212,2]
[311249951,1704996642344,-3000.0,0.0003213,2]
[311249954,1704996642353,-3000.0,0.0003214,2]
[311249959,1704996642395,-3000.0,0.0003215,2]
[311249962,1704996642404,-3000.0,0.0003216,2]
[311249963,1704996642413,-3000.0,0.0003217,2]
[311249966,1704996642422,-3000.0,0.0003218,2]
[311249969,1704996642432,-3000.0,0.0003219,2]
[311249972,1704996642440,-3413.375928,0.000322,2]
[311249975,1704996642451,-150.14241864,0.00032299,2]
[311249979,1704996642460,-13928.55198614,0.00032325,4]
[311249983,1704996642469,-680.0,0.00032362,2]
[311249986,1704996642478,-2673.43,0.00032433,2]
[311249989,1704996642487,-450.0,0.000325,3]
[311249992,1704996642497,-400.0,0.00032628,2]
[311249995,1704996642506,-525.20676539,0.00032876,7]
[311249998,1704996642515,-214.61869835,0.00032876,7]
[311250002,1704996642524,-500.0,0.00032876,7]
[311250004,1704996642534,-500.0,0.00032876,7]
[311250008,1704996642545,-500.0,0.00032876,7]
[311250010,1704996642555,-500.0,0.00032876,7]
[311250013,1704996642564,-500.0,0.00032876,7]
[311250016,1704996642573,-590.72110331,0.00032876,7]
[311250019,1704996642582,-500.0,0.00032876,7]
[311250023,1704996642591,-477.68143786,0.00032876,7]
[311250026,1704996642600,-330.54068822,0.00032876,7]
[311250029,1704996642609,-159.92958005,0.00032876,7]
[311250031,1704996642618,-421.16274549,0.00032876,7]
[311250034,1704996642626,-364.47024632,0.00032876,7]
[311250037,1704996642635,-1500.0,0.00032876,2]
[311250040,1704996642644,-286.80288901,0.00032876,2]
[311250042,1704996642653,-153.84,0.00032877,2]
[311250045,1704996642664,-12677.13,0.00032877,2]
[311250047,1704996642673,-36965.2,0.00032877,2]
[311250049,1704996642682,-1172.26,0.00032877,15]
[311250052,1704996642691,-51899.73,0.00032877,2]
[311250054,1704996642701,-155.0,0.00032877,2]
[311250056,1704996642710,-500.0,0.000329,2]
[311250058,1704996642718,-1000.0,0.000329,2]
[311250061,1704996642728,-2160.19019981,0.000329,30]
[311250062,1704996642737,-204.0,0.00032925,2]
[311250065,1704996642747,-150.14241864,0.00032958,2]
[311250067,1704996642757,-7999.99,0.00032959,14]
[311250068,1704996642766,-576.0,0.00032959,3]
[311250071,1704996642775,-155.0,0.00033,4]
[311250073,1704996642791,-2000.0,0.00033,5]
[311250077,1704996642812,-15154.588415,0.00033,2]
[311250079,1704996642827,-2509.66027448,0.00033,2]
[311250082,1704996642839,-1460.57299565,0.00033,2]
[311250084,1704996642854,-550.0,0.00033,3]
[311250087,1704996642869,-155.0,0.00033,4]
[311250089,1704996642883,-202.0,0.00033,2]
[311250092,1704996642897,-450.0,0.0003312,3]
[311250094,1704996642911,-160.23,0.00033299,2]
[311250097,1704996642923,-857.83,0.00033316,2]
[311250099,1704996642938,-1000.0,0.00033333,2]
[311250102,1704996642952,-13928.55198614,0.00033373,5]
[311250104,1704996642969,-2673.43,0.00033412,2]
[311250106,1704996642980,-1500.0,0.00033424,4]
[311250109,1704996642996,-150.14241864,0.00033616,2]
[311250111,1704996643011,-204.0,0.00033677,3]
[311250114,1704996643023,-450.0,0.0003374,3]
[311250116,1704996643038,-153.84,0.0003379,2]
[311250119,1704996643052,-1619.78,0.00033962,10]
[311250121,1704996643066,-1500.0,0.00033972,6]
[311250124,1704996643082,-201.6432844,0.00034,2]
[311250126,1704996643098,-155.0,0.00034,2]
[311250129,1704996643111,-1000.0,0.00034,4]
[311250131,1704996643121,-22222.00453148,0.00034,7]
[311250133,1704996643134,-114960.87568854,0.00034,2]
[311250136,1704996643147,-600.0,0.000342,2]
[311250138,1704996643162,-300.0,0.000342,2]
[311250141,1704996643176,-3000.0,0.000342,2]
[311250143,1704996643186,-500.0,0.000342,2]
[311250145,1704996643199,-300.0,0.000342,2]
[311250147,1704996643212,-1000.0,0.000342,2]
[311250149,1704996643224,-200.0,0.000342,2]
[311250151,1704996643236,-1500.0,0.000342,2]
[311250154,1704996643250,-1000.0,0.000342,2]
[311250156,1704996643262,-653.0,0.000342,2]
[311250159,1704996643280,-650.0,0.000342,2]
[311250161,1704996643293,-155.0,0.00034247,2]
[311250164,1704996643305,-150.14241864,0.00034274,2]
[311250166,1704996643318,-450.0,0.0003436,3]
[311250168,1704996643330,-2673.43,0.0003439,2]
[311250171,1704996643342,-1943.73,0.0003441,10]
[311250173,1704996643354,-13928.55198614,0.0003442,6]
[311250175,1704996643366,-204.0,0.00034429,5]
[311250178,1704996643378,-104699.84932854,0.000345,2]
[311250180,1704996643390,-2332.48,0.000345,10]
[311250182,1704996643402,-439.758573,0.0003452,2]
[311250184,1704996643414,-6999.14508,0.0003452,2]
[311250187,1704996643426,-2192.411679,0.0003452,2]
[311250189,1704996643438,-309.430063,0.0003452,2]
[311250191,1704996643450,-464.145094,0.0003452,2]
[311250194,1704996643461,-3288.617519,0.0003452,2]
[311250196,1704996643473,-2475.440504,0.0003452,2]
[311250198,1704996643484,-17539.293436,0.0003452,2]
[311250200,1704996643496,-211.17879333,0.0003452,8]
[311250203,1704996643509,-4704.21,0.00034521,2]
[311250205,1704996643520,-180.0,0.00034658,2]
[311250207,1704996643532,-11324.20358883,0.0003468,30]
[311250209,1704996643544,-153.84,0.00034703,2]
[311250212,1704996643556,-406.31,0.00034703,2]
[311250214,1704996643568,-659.63786,0.00034794,2]
[311250216,1704996643580,-10498.717621,0.00034794,2]
[311250219,1704996643592,-3288.617519,0.00034794,2]
[311250221,1704996643603,-464.145094,0.00034794,2]
[311250223,1704996643615,-696.217642,0.00034794,2]
[311250226,1704996643627,-4932.926279,0.00034794,2]
[311250228,1704996643639,-3713.160756,0.00034794,2]
[311250230,1704996643652,-26308.940154,0.00034794,2]
[311250233,1704996643664,-34687.81962966,0.000348,2]
[311250235,1704996643675,-4904.95758154,0.000349,2]
[311250237,1704996643687,-7500.0,0.000349,2]
[311250239,1704996643700,-2000.0,0.000349,4]
[311250242,1704996643712,-665.25406841,0.000349,2]
[311250244,1704996643724,-665.25406839,0.000349,2]
[311250246,1704996643736,-665.25406839,0.000349,2]
[311250249,1704996643748,-665.25406839,0.000349,2]
[311250251,1704996643761,-665.25406839,0.000349,2]
[311250253,1704996643774,-665.25406839,0.000349,2]
[311250255,1704996643787,-4134.34833494,0.000349,2]
[311250258,1704996643802,-4134.34833476,0.000349,2]
[311250260,1704996643814,-4134.34833476,0.000349,2]
[311250262,1704996643827,-4134.34833476,0.000349,2]
[311250264,1704996643839,-4134.34833476,0.000349,2]
[311250267,1704996643851,-4134.34833476,0.000349,2]
[311250269,1704996643863,-4134.34833476,0.000349,2]
[311250271,1704996643875,-4134.34833476,0.000349,2]
[311250273,1704996643888,-150.0,0.0003493,2]
[311250276,1704996643900,-150.0,0.0003493,2]
[311250278,1704996643912,-879.517147,0.00034931,2]
[311250280,1704996643924,-13998.290161,0.00034931,2]
[311250283,1704996643936,-4384.823359,0.00034931,2]
[311250285,1704996643949,-618.860126,0.00034931,2]
[311250287,1704996643960,-928.290189,0.00034931,2]
[311250289,1704996643972,-6577.235039,0.00034931,2]
[311250292,1704996643985,-4950.881008,0.00034931,2]
[311250294,1704996643997,-35078.586873,0.00034931,2]
[311250296,1704996644009,-150.14241864,0.00034933,2]
[311250298,1704996644021,-862.7692603,0.0003498,3]
[311250301,1704996644035,-157.5,0.0003498,3]
[311250303,1704996644047,-100000.0,0.00035,5]
[311250305,1704996644059,-2528.67982368,0.00035,10]
[311250308,1704996644071,-2500.0,0.00035,2]
[311250310,1704996644084,-255.41007841,0.00035,4]
[311250312,1704996644096,-1804.3259406,0.00035,4]
[311250315,1704996644109,-231065.71338136,0.00035,2]
[311250317,1704996644122,-15716.17370559,0.00035,7]
[311250319,1704996644135,-1000.0,0.00035,2]
[311250320,1704996644147,-521.99997336,0.00035,4]
[311250321,1704996644159,-156.33793891,0.00035,4]
[311250322,1704996644171,-5000.0,0.00035,2]
[311250323,1704996644182,-155.0,0.00035,2]
[311250324,1704996644191,-112786.23398879,0.00035,4]
[311250325,1704996644200,-1254.85509732,0.00035,4]
[311250326,1704996644209,-155.0,0.00035,4]
[311250327,1704996644218,-16499.22203045,0.00035,2]
[311250328,1704996644227,-619.07656999,0.00035,4]
[311250329,1704996644236,-92217.57074463,0.00035,2]
[311250330,1704996644245,-213.14964529,0.00035,2]
[311250331,1704996644254,-4635.26547838,0.00035,2]
[311250332,1704996644263,-23066.9346401,0.00035,7]
[311250334,1704996644272,-332.37554266,0.00035,7]
[311250336,1704996644282,-600.0,0.00035,3]
[311250338,1704996644291,-235.64094193,0.00035,2]
[311250340,1704996644300,-447.61294847,0.00035,4]
[311250342,1704996644309,-193.62121519,0.00035,4]
[311250343,1704996644319,-200.0,0.00035,5]
[311250346,1704996644330,-871.67340464,0.00035,2]
[311250376,1704996644597,-871.67340464,0.00035,2]
[311250380,1704996644615,-691.29670553,0.00035,2]
[311250385,1704996644635,-691.29670553,0.00035,2]
[311250388,1704996644646,-1725.85762533,0.00035,2]
[311250391,1704996644656,-1725.85762533,0.00035,2]
[311250394,1704996644665,-4134.34833476,0.00035051,2]
[311250397,1704996644673,-1099.396434,0.00035068,2]
[311250400,1704996644683,-17497.862702,0.00035068,2]
[311250403,1704996644691,-5481.029199,0.00035068,2]
[311250406,1704996644701,-773.575158,0.00035068,2]
[311250409,1704996644710,-1160.362736,0.00035068,2]
[311250412,1704996644719,-8221.543798,0.00035068,2]
[311250415,1704996644728,-6188.60126,0.00035068,2]
[311250418,1704996644737,-43848.233591,0.00035068,2]
[311250421,1704996644746,-204.0,0.00035181,6]
[311250424,1704996644755,-1539.155008,0.00035342,2]
[311250426,1704996644764,-24497.007783,0.00035342,2]
[311250428,1704996644773,-7673.440879,0.00035342,2]
[311250430,1704996644782,-1083.005221,0.00035342,2]
[311250432,1704996644792,-1624.507831,0.00035342,2]
[311250434,1704996644802,-11510.161318,0.00035342,2]
[311250436,1704996644811,-8664.041765,0.00035342,2]
[311250438,1704996644820,-61387.527027,0.00035342,2]
[311250440,1704996644829,-2673.43,0.00035369,2]
[311250442,1704996644838,-150.0,0.00035388,2]
[311250444,1704996644847,-150.0,0.00035534,2]
[311250446,1704996644857,-665.25406839,0.00035549,2]
[311250448,1704996644866,-857.83,0.0003558,2]
[311250450,1704996644875,-150.14241864,0.00035591,2]
[311250452,1704996644884,-1000.0,0.000356,2]
[311250454,1704996644893,-507.156143,0.000356,3]
[311250456,1704996644902,-5364.0,0.000356,2]
[311250458,1704996644911,-150.0,0.00035616,2]
[311250460,1704996644920,-300.0,0.00035616,7]
[311250462,1704996644929,-336.93691744,0.00035616,12]
[311250464,1704996644940,-153.84,0.00035616,2]
[311250466,1704996644953,-200.0,0.00035616,2]
[311250468,1704996644963,-151.0,0.00035616,7]
[311250470,1704996644973,-151.0,0.00035616,7]
[311250472,1704996644982,-248.773677,0.00035616,7]
[311250473,1704996644992,-151.0,0.00035616,7]
[311250475,1704996645001,-151.0,0.00035616,7]
[311250477,1704996645010,-151.0,0.00035616,7]
[311250479,1704996645020,-151.0,0.00035616,7]
[311250481,1704996645031,-269.989452,0.00035616,7]
[311250483,1704996645040,-151.0,0.00035616,7]
[311250485,1704996645049,-151.0,0.00035616,7]
[311250488,1704996645059,-151.0,0.00035616,7]
[311250490,1704996645068,-157.44,0.00035616,7]
[311250492,1704996645078,-151.0,0.00035616,7]
[311250494,1704996645087,-151.0,0.00035616,7]
[311250495,1704996645096,-151.0,0.00035616,7]
[311250498,1704996645105,-856.517788,0.00035616,7]
[311250500,1704996645114,-856.517788,0.00035616,7]
[311250502,1704996645124,-856.517788,0.00035616,7]
[311250504,1704996645133,-856.517788,0.00035616,7]
[311250506,1704996645142,-856.517788,0.00035616,7]
[311250508,1704996645151,-856.517788,0.00035616,7]
[311250510,1704996645160,-259.999034,0.00035616,7]
[311250512,1704996645169,-151.0,0.00035616,7]
[311250514,1704996645179,-151.0,0.00035616,7]
[311250516,1704996645188,-180.606058,0.00035616,7]
[311250517,1704996645207,-236.58314,0.00035616,7]
[311250519,1704996645217,-151.0,0.00035616,7]
[311250521,1704996645226,-151.0,0.00035616,7]
[311250523,1704996645235,-151.0,0.00035616,7]
[311250525,1704996645245,-151.0,0.00035616,7]
[311250528,1704996645254,-151.0,0.00035616,7]
[311250530,1704996645263,-151.0,0.00035616,7]
[311250532,1704996645273,-151.0,0.00035616,7]
[311250534,1704996645283,-154.427243,0.00035616,7]
[311250535,1704996645292,-151.0,0.00035616,7]
[311250537,1704996645303,-151.0,0.00035616,7]
[311250540,1704996645312,-151.0,0.00035616,7]
[311250544,1704996645322,-151.0,0.00035616,7]
[311250546,1704996645331,-151.0,0.00035616,7]
[311250549,1704996645340,-151.0,0.00035616,7]
[311250551,1704996645350,-151.0,0.00035616,7]
[311250553,1704996645360,-151.0,0.00035616,7]
[311250556,1704996645370,-151.0,0.00035616,7]
[311250558,1704996645379,-151.0,0.00035616,7]
[311250561,1704996645389,-151.0,0.00035616,7]
[311250564,1704996645398,-151.0,0.00035616,7]
[311250566,1704996645408,-151.0,0.00035616,7]
[311250568,1704996645417,-151.0,0.00035616,7]
[311250570,1704996645426,-151.0,0.00035616,7]
[311250572,1704996645435,-151.0,0.00035616,7]
[311250574,1704996645445,-151.0,0.00035616,7]
[311250575,1704996645457,-151.0,0.00035616,7]
[311250577,1704996645466,-194.823988,0.00035616,7]
[311250579,1704996645475,-151.0,0.00035616,7]
[311250581,1704996645485,-831.046598,0.00035616,7]
[311250584,1704996645494,-831.046598,0.00035616,7]
[311250585,1704996645504,-831.046598,0.00035616,7]
[311250589,1704996645513,-831.046598,0.00035616,7]
[311250591,1704996645522,-831.046598,0.00035616,7]
[311250593,1704996645531,-831.046598,0.00035616,7]
[311250595,1704996645540,-151.005115,0.00035616,7]
[311250597,1704996645549,-151.0,0.00035616,7]
[311250599,1704996645558,-151.0,0.00035616,7]
[311250601,1704996645567,-151.0,0.00035616,7]
[311250604,1704996645576,-151.0,0.00035616,7]
[311250607,1704996645585,-151.0,0.00035616,7]
[311250610,1704996645594,-151.0,0.00035616,7]
[311250613,1704996645603,-151.0,0.00035616,7]
[311250616,1704996645612,-151.0,0.00035616,7]
[311250619,1704996645621,-151.0,0.00035616,7]
[311250622,1704996645630,-151.0,0.00035616,7]
[311250626,1704996645640,-151.0,0.00035616,7]
[311250630,1704996645649,-151.0,0.00035616,7]
[311250634,1704996645658,-151.0,0.00035616,7]
[311250638,1704996645668,-151.0,0.00035616,7]
[311250642,1704996645677,-151.0,0.00035616,7]
[311250646,1704996645686,-151.0,0.00035616,7]
[311250650,1704996645696,-151.0,0.00035616,7]
[311250653,1704996645708,-151.0,0.00035616,7]
[311250656,1704996645717,-1217.978725,0.00035616,7]
[311250659,1704996645726,-1217.978725,0.00035616,7]
[311250661,1704996645735,-1217.978725,0.00035616,7]
[311250664,1704996645744,-1217.978725,0.00035616,7]
[311250667,1704996645753,-1217.978725,0.00035616,7]
[311250670,1704996645762,-1217.978725,0.00035616,7]
[311250674,1704996645772,-151.0,0.00035616,7]
[311250676,1704996645781,-151.0,0.00035616,7]
[311250679,1704996645790,-151.0,0.00035616,7]
[311250682,1704996645802,-366.929219,0.00035616,7]
[311250686,1704996645812,-366.929219,0.00035616,7]
[311250689,1704996645821,-366.929219,0.00035616,7]
[311250692,1704996645830,-366.929219,0.00035616,7]
[311250694,1704996645840,-366.929219,0.00035616,7]
[311250697,1704996645849,-366.929219,0.00035616,7]
[311250700,1704996645858,-151.900504,0.00035616,7]
[311250704,1704996645867,-151.0,0.00035616,7]
[311250707,1704996645877,-158.508133,0.00035616,7]
[311250709,1704996645886,-155.0,0.00035617,2]
[311250713,1704996645895,-150.0,0.00035618,2]
[311250715,1704996645903,-150.0,0.00035684,2]
[311250718,1704996645913,-150.0,0.00035693,2]
[311250721,1704996645921,-1008.96524208,0.00035694,4]
[311250725,1704996645931,-1500.0,0.00035752,2]
[311250727,1704996645939,-4704.21,0.00035798,2]
[311250730,1704996645949,-158.75241324,0.00035805,2]
[311250732,1704996645958,-150.0,0.00035869,2]
[311250736,1704996645967,-300.0,0.00035873,2]
[311250739,1704996645976,-150.0,0.00035913,2]
[311250742,1704996645985,-204.0,0.00035933,8]
[311250744,1704996645994,-150.0,0.00035946,2]
[311250748,1704996646003,-4804.0,0.0003596,30]
[311250752,1704996646013,-4804.0,0.0003596,60]
[311250754,1704996646022,-155.0,0.00035999,2]
[311250757,1704996646031,-150.0,0.00035999,2]
[311250759,1704996646039,-150.0,0.00035999,2]
[311250761,1704996646048,-100000.0,0.00036,6]
[311250763,1704996646058,-762.6000504,0.00036,4]
[311250764,1704996646067,-56690.35014993,0.00036,2]
[311250765,1704996646075,-115203.49795595,0.00036,4]
[311250766,1704996646084,-115000.0,0.00036,2]
[311250767,1704996646094,-12517.0,0.00036,2]
[311250768,1704996646103,-251.42218854,0.00036,2]
[311250769,1704996646112,-151.0,0.00036,7]
[311250770,1704996646121,-831.046598,0.00036,7]
[311250771,1704996646130,-831.046598,0.00036,7]
[311250772,1704996646139,-151.0,0.00036,7]
[311250773,1704996646149,-151.0,0.00036,7]
[311250774,1704996646158,-202.0,0.00036,2]
[311250775,1704996646168,-150.0,0.00036001,2]
[311250776,1704996646176,-150.0,0.00036018,2]
[311250777,1704996646186,-150.0,0.00036021,2]
[311250778,1704996646195,-1500.0,0.00036043,2]
[311250779,1704996646206,-150.0,0.00036045,2]
[311250780,1704996646215,-150.0,0.00036054,2]
[311250782,1704996646224,-150.0,0.00036055,2]
[311250784,1704996646234,-150.0,0.00036059,2]
[311250786,1704996646243,-150.0,0.00036066,2]
[311250788,1704996646252,-150.0,0.00036069,2]
[311250790,1704996646261,-150.0,0.00036072,2]
[311250792,1704996646271,-150.0,0.00036073,2]
[311250794,1704996646280,-150.0,0.0003608,2]
[311250796,1704996646289,-150.0,0.00036088,2]
[311250798,1704996646298,-3820.1347044,0.00036089,2]
[311250800,1704996646307,-3820.13470439,0.00036089,2]
[311250802,1704996646317,-3820.13470439,0.00036089,2]
[311250804,1704996646326,-3820.13470439,0.00036089,2]
[311250806,1704996646335,-3820.13470439,0.00036089,2]
[311250808,1704996646345,-3820.13470439,0.00036089,2]
[311250810,1704996646354,-3820.13470439,0.00036089,2]
[311250812,1704996646364,-3820.13470439,0.00036089,2]
[311250814,1704996646373,-3820.13470439,0.00036091,2]
[311250815,1704996646382,-150.0,0.00036092,2]
[311250816,1704996646391,-150.0,0.00036092,2]
[311250817,1704996646401,-150.0,0.00036098,2]
[311250818,1704996646410,-150.0,0.00036101,2]
[311250819,1704996646419,-150.0,0.00036105,2]
[311250820,1704996646428,-150.0,0.00036121,2]
[311250821,1704996646437,-150.0,0.00036121,2]
[311250822,1704996646446,-150.0,0.00036139,2]
[311250823,1704996646457,-150.0,0.0003614,2]
[311250824,1704996646467,-150.0,0.0003615,2]
[311250826,1704996646476,-177.8897533,0.00036178,2]
[311250828,1704996646485,-150.0,0.00036182,2]
[311250830,1704996646493,-150.0,0.00036183,2]
[311250832,1704996646502,-150.0,0.00036193,2]
[311250834,1704996646511,-150.0,0.00036195,2]
[311250836,1704996646521,-150.0,0.00036197,2]
[311250838,1704996646530,-150.0,0.00036223,2]
[311250840,1704996646539,-150.0,0.00036224,2]
[311250842,1704996646549,-150.0,0.0003624,2]
[311250844,1704996646558,-150.14241864,0.00036249,2]
[311250846,1704996646567,-150.0,0.00036252,2]
[311250848,1704996646576,-560.0,0.00036255,3]
[311250850,1704996646586,-150.0,0.00036258,2]
[311250852,1704996646595,-150.0,0.00036262,2]
[311250854,1704996646604,-1500.0,0.00036266,2]
[311250856,1704996646614,-150.0,0.00036296,2]
[311250858,1704996646623,-150.0,0.00036322,2]
[311250860,1704996646631,-150.0,0.00036326,2]
[311250862,1704996646641,-300.0,0.00036341,2]
[311250864,1704996646650,-1500.0,0.00036342,2]
[311250866,1704996646659,-1500.0,0.00036347,2]
[311250868,1704996646668,-300.0,0.00036354,2]
[311250870,1704996646677,-150.0,0.00036366,2]
[311250871,1704996646688,-1500.0,0.0003639,2]
[311250873,1704996646698,-150.0,0.00036392,2]
[311250875,1704996646707,-150.0,0.00036404,2]
[311250877,1704996646716,-150.0,0.0003641,2]
[311250879,1704996646725,-150.0,0.00036412,2]
[311250881,1704996646734,-150.0,0.00036417,2]
[311250883,1704996646743,-150.0,0.00036419,2]
[311250885,1704996646752,-150.0,0.00036425,2]
[311250887,1704996646761,-261.6208,0.0003643,2]
[311250889,1704996646770,-50041.7966609,0.0003644,2]
[311250891,1704996646780,-1500.0,0.00036447,2]
[311250893,1704996646788,-150.0,0.0003648,2]
[311250895,1704996646797,-150.0,0.00036485,2]
[311250897,1704996646806,-6522.32368624,0.000365,6]
[311250899,1704996646815,-150.0,0.00036503,2]
[311250901,1704996646824,-150.0,0.00036504,2]
[311250903,1704996646833,-150.0,0.00036512,2]
[311250905,1704996646842,-665.25406839,0.00036523,2]
[311250907,1704996646851,-150.0,0.00036529,2]
[311250909,1704996646860,-153.84,0.0003653,2]
[311250911,1704996646869,-150.0,0.00036535,2]
[311250913,1704996646878,-300.0,0.00036547,2]
[311250915,1704996646889,-242.92012067,0.00036547,2]
[311250917,1704996646898,-300.0,0.00036552,2]
[311250919,1704996646907,-1500.0,0.00036555,2]
[311250921,1704996646916,-150.0,0.00036557,2]
[311250923,1704996646925,-150.0,0.00036558,2]
[311250925,1704996646934,-150.0,0.00036563,2]
[311250927,1704996646943,-150.0,0.00036572,2]
[311250929,1704996646952,-300.0,0.00036575,2]
[311250931,1704996646961,-150.0,0.00036579,2]
[311250933,1704996646970,-150.0,0.00036583,2]
[311250935,1704996646979,-150.0,0.00036584,2]
[311250937,1704996646988,-1500.0,0.00036593,2]
[311250939,1704996646996,-1500.0,0.00036593,2]
[311250941,1704996647009,-150.0,0.00036599,2]
[311250943,1704996647018,-500.0,0.000366,3]
[311250945,1704996647027,-150.0,0.00036609,2]
[311250947,1704996647036,-1172.26,0.00036613,15]
[311250949,1704996647045,-150.0,0.00036615,2]
[311250951,1704996647055,-150.0,0.00036615,2]
[311250953,1704996647064,-150.0,0.00036622,2]
[311250955,1704996647073,-1500.0,0.00036629,2]
[311250957,1704996647084,-4134.34833476,0.0003663,2]
[311250959,1704996647093,-150.0,0.0003663,2]
[311250961,1704996647101,-150.0,0.00036639,2]
[311250963,1704996647110,-150.0,0.00036647,2]
[311250965,1704996647119,-150.0,0.00036653,2]
[311250967,1704996647128,-300.0,0.00036654,2]
[311250969,1704996647137,-1000.0,0.00036667,2]
[311250970,1704996647146,-150.0,0.00036669,2]
[311250973,1704996647155,-150.0,0.00036672,2]
[311250975,1704996647165,-150.0,0.00036684,2]
[311250977,1704996647174,-150.0,0.00036684,2]
[311250979,1704996647183,-204.0,0.00036685,10]
[311250981,1704996647192,-150.0,0.00036699,2]
[311250982,1704996647203,-150.0,0.000367,2]
[311250984,1704996647212,-150.0,0.00036702,2]